Cogmind - Beta 15 @@@ ROGUE MODE // 2025.06.02 @ 02:41:34 Player: Sen Result: Destroyed by G-47 Trooper with Particle Gun Performance ------------- Evolutions (3) 1500 Regions Visited (6) 1200 Robots Destroyed (59) 295 Value Destroyed (2337) 2337 Prototype IDs (10) 200 Alien Tech Used (0) 0 Bonus (0) 0 TOTAL SCORE: 5532 Bonus ------- None Cogmind --------- Core Integrity 0/700 Matter 196/300 Energy 33/100 System Corruption 15% Temperature Cool (9) Movement Treading (145) Location -7/Factory Parts ------- > --- POWER (2) -------- (None) > --- PROPULSION (2) --- Advanced Treads > --- UTILITY (7) ------ Structural Scanner ECM Suite Hacking Suite > --- WEAPON (2) ------- (None) > --- INVENTORY (5) ---- Improved Heat Sink Improved Light Armor Plating Graphene Brace Improved Field Recycling Unit (9) Gauss Cannon Peak State ------------ > --- POWER ------------ Improved Deuterium Engine Heavy Deuterium Engine > --- PROPULSION ------- Wheel Wheel > --- UTILITY ---------- Huge Storage Unit Weapon Cycler Transmission Jammer Improved Medium Armor Plating Hacking Suite System Shield Recalibrator > --- WEAPON ----------- Arc Projector Enhanced Autogun > --- INVENTORY -------- Light Deuterium Engine Wheel Improved Heat Sink Improved Heat Sink Improved Heat Sink ECM Suite Component Analysis Suite Improved Field Recycling Unit Arc Projector Arc Projector Arc Projector Gatling Laser Heavy Particle Cannon Gauss Rifle Advanced Assault Cannon Advanced Assault Cannon Advanced Assault Cannon Rocket Array [Rating: 48] Favorites ----------- Power Light Ion Engine Engine Light Ion Engine Power Core Light Nuclear Core Propulsion Wheel Treads Advanced Treads Leg Aluminum Leg Wheel Wheel Utility Hacking Suite Device Structural Scanner Storage Huge Storage Unit Processor Improved Targeting Computer Hackware Hacking Suite Protection Improved Medium Armor Plating Weapon Gauss Rifle Energy Gun Heavy EM Shotgun Energy Cannon Advanced Beam Cannon Ballistic Gun Gauss Rifle Ballistic Cannon Advanced Assault Cannon Launcher Rocket Array Slashing Weapon Great Axe Build | -11 -10 -9 -8 -7 -7 -7 ------- Run | Yrd Mat Mat Mat Fac Was Fac Slots Evolved 6 | . . 2 2 2 . . Power 1 | . . . 1 . . . Propulsion . | . . . . . . . Utility 5 | . . 2 1 2 . . Weapon . | . . . . . . . Parts Attached 99 | 6 6 6 8 66 5 2 Power 18 | 1 . . 5 10 1 1 Engine 16 | 1 . . 5 8 1 1 Core 2 | . . . . 2 . . Reactor . | . . . . . . . Propulsion 19 | 2 2 . . 13 1 1 Treads 1 | . . . . . . 1 Leg 2 | 2 . . . . . . Wheel 16 | . 2 . . 13 1 . Hover . | . . . . . . . Flight . | . . . . . . . Utility 38 | 1 4 3 2 27 1 . Device 22 | . 1 1 1 18 1 . Storage 6 | 1 2 1 . 2 . . Processor 1 | . . 1 . . . . Hackware 2 | . . . . 2 . . Protection 7 | . 1 . 1 5 . . Artifact . | . . . . . . . Weapon 24 | 2 . 3 1 16 2 . Energy Gun 9 | 1 . 3 . 5 . . Energy Cannon 3 | . . . 1 1 1 . Ballistic Gun 7 | 1 . . . 6 . . Ballistic Cannon 3 | . . . . 2 1 . Launcher 1 | . . . . 1 . . Special Weapon . | . . . . . . . Impact Weapon . | . . . . . . . Slashing Weapon 1 | . . . . 1 . . Piercing Weapon . | . . . . . . . Special Melee Weapon . | . . . . . . . Unidentified Prototypes 4 | . . 1 1 2 . . Parts Lost 41 | . . . 1 32 6 2 Power 10 | . . . . 8 1 1 Propulsion 12 | . . . . 11 1 . Utility 12 | . . . . 8 3 1 Weapon 7 | . . . 1 5 1 . Highest Loss Streak 7 | . . . 1 7 6 2 To Critical Strikes . | . . . . . . . Average Backups 15 | 2 7 11 13 18 16 5 Power 1 | . 2 3 3 1 . . Propulsion . | 1 2 1 1 . . . Utility 5 | . . 1 4 6 6 4 Weapon 7 | . 2 4 4 9 8 1 Tool/Special . | . . . . . . . Unused Backups 27 | . . 7 1 8 8 3 Power 3 | . . 1 . 1 1 . Propulsion 3 | . . 1 . 2 . . Utility 6 | . . . . 2 2 2 Weapon 15 | . . 5 1 3 5 1 Tool/Special . | . . . . . . . Average Slot Usage (%) 94 | . 98 98 98 95 72 37 Engine 12 | . 14 11 18 12 4 4 Core 1 | . . . . 1 4 . Wheel 14 | . 25 22 18 13 9 . Device 22 | . 8 16 24 24 20 15 Storage 10 | . 14 16 18 9 4 . Hackware 8 | . . . . 10 15 12 Protection 5 | . 3 5 2 6 4 . Energy Gun 5 | . 14 16 16 3 . . Energy Cannon 1 | . . . . 1 2 . Ballistic Gun 6 | . 14 5 . 6 1 . Ballistic Cannon 1 | . . . . 1 2 . Peak Build Rating 48 | 6 8 19 26 48 45 16 Average Rating 31 | 3 7 14 23 38 28 12 On Entrance 14 | . 6 8 19 22 34 10 Naked Turns . | . . . . . . . Heaviest Build 123 | 14 90 36 45 123 117 8 Greatest Support 32 | 20 20 20 20 32 32 22 Greatest Overweight (x) 11 | . 4 1 2 11 3 2 Average Overweight (x) 2 | . 1 1 2 3 . . Largest Inventory Capacity 25 | 8 25 15 15 25 25 5 Average Capacity 19 | 5 16 15 15 21 17 5 Most Carried 25 | 5 10 15 15 25 25 5 Average Carried 15 | 2 7 11 13 18 16 5 Final Capacity 25 | 8 15 15 15 25 5 5 Final Carried 24 | 4 10 14 15 24 5 5 Class Distribution -------------------- 41% | Hacker-Mutant 38% | Mutant 16% | Scavenger-Mutant 4% | Infiltrator-Mutant Dominant Class ---------------- Mutant | -10/Materials Mutant | -9/Materials Mutant | -8/Materials Hacker-Mutant | -7/Factory Scavenger-Mutant | -7/Waste Hacker-Mutant | -7/Factory Resources | -11 -10 -9 -8 -7 -7 -7 ----------- Run | Yrd Mat Mat Mat Fac Was Fac Matter Collected 1900 | 226 29 178 58 1409 . . Remotely . | . . . . . . . Salvage Created 2502 | . 29 256 80 2137 . . Parts 148 | . 2 17 4 125 . . Haulers Intercepted . | . . . . . . . Recyclers Shooed 4 | . . . . 4 . . Parts Field Recycled 21 | . . . . 21 . . Retrieved Matter 158 | . . . . 158 . . Parts Self-Destructed . | . . . . . . . Prevented . | . . . . . . . Kills | -11 -10 -9 -8 -7 -7 -7 ------- Run | Yrd Mat Mat Mat Fac Was Fac Combat Hostiles Destroyed 40 | . . 5 1 34 . . Melee 1 | . . . . 1 . . Guns 24 | . . 5 1 18 . . Cannons 6 | . . . . 6 . . AOE 8 | . . . . 8 . . Classes Destroyed 11 | . 1 3 . 7 . . Worker 4 | . . . . 4 . . Builder 3 | . . . . 3 . . Tunneler 2 | . . . . 2 . . Recycler 6 | . . . . 6 . . Watcher 4 | . 1 . 1 2 . . Grunt 18 | . . 2 . 16 . . Brawler 2 | . . 1 . 1 . . Sentry 9 | . . 2 1 6 . . Specialist 2 | . . . . 2 . . Hunter 2 | . . . . 2 . . Programmer 7 | . . . . 7 . . Best Kill Streak 10 | . 1 3 1 10 . . Combat Bots Only 6 | . . 3 1 6 . . Max Kills in Single Turn 5 | . 1 1 1 5 . . Gunslinging . | . . . . . . . Exploded 4 | . . . . 4 . . Melee 1 | . . . . 1 . . Uniques/NPCs Destroyed . | . . . . . . . Combat | -11 -10 -9 -8 -7 -7 -7 -------- Run | Yrd Mat Mat Mat Fac Was Fac Hostile Shots Fired 498 | . . 15 5 448 5 25 Missed 140 | . . 4 2 130 . 4 Hits 358 | . . 11 3 318 5 21 Melee 6 | . . 1 . . 5 . Projectile 352 | . . 10 3 318 . 21 Critical Strikes 17 | . . 2 . 13 2 . Actively Blocked 1 | . . . . 1 . . Part Disruptions 2 | . . . . 2 . . Damage Taken 5167 | . . 151 112 4353 232 319 Core 776 | . . 24 50 517 88 97 Absorbed by Shields . | . . . . . . . Redirected to Shielding 48 | . . 2 . 46 . . Regen/Repaired (Parts) 24 | . 24 . . . . . Core Remaining (%) 96 | 100 100 94 90 . . . Volleys Fired 148 | . 2 12 2 132 . . Largest 2 | . 2 2 2 2 . . Hottest 148 | . 70 100 100 148 . . Shots Fired 283 | . 4 24 3 252 . . Gun 209 | . 4 24 3 178 . . Cannon 71 | . . . . 71 . . Launcher 3 | . . . . 3 . . Special . | . . . . . . . Kinetic 148 | . 2 9 . 137 . . Thermal 98 | . 2 9 . 87 . . Explosive 3 | . . . . 3 . . Electromagnetic 34 | . . 6 3 25 . . Robot Hit Streak 19 | . 1 15 9 19 . . Robot Miss Streak 5 | . 1 1 . 5 . . Penetration Max 1 | . . . . 1 . . Secondary Targets 1 | . . . . 1 . . Max Gunslinging Chain 1 | . . . . 1 . . Shots Hit Robots 210 | . 2 21 3 184 . . Core Hits 129 | . 1 10 3 114 . 1 Critical Kills . | . . . . . . . Critical Parts Destroyed 2 | . . . . 2 . . Critical Strikes 3 | . . 1 . 2 . . Burn 1 | . . 1 . . . . Destroy 2 | . . . . 2 . . Melee Attacks 4 | . . . . 4 . . Impact . | . . . . . . . Slashing 4 | . . . . 4 . . Piercing . | . . . . . . . Sneak Attacks . | . . . . . . . Combat Hostiles . | . . . . . . . Follow-up Attacks . | . . . . . . . Damage Inflicted 5527 | . 26 267 147 5079 . 8 Guns 2893 | . 26 267 89 2511 . . Cannons 966 | . . . . 966 . . Explosions 1549 | . . . 58 1491 . . Melee 109 | . . . . 109 . . Ramming 10 | . . . . 2 . 8 Kinetic 1964 | . . 77 . 1887 . . Thermal 1875 | . 26 112 58 1679 . . Explosive 1074 | . . . . 1074 . . Electromagnetic 495 | . . 78 89 328 . . Impact . | . . . . . . . Slashing 109 | . . . . 109 . . Piercing . | . . . . . . . Highest Corruption 15 | . . . 1 15 15 15 Average Corruption 5 | . . . 1 4 15 15 Corruption Purged . | . . . . . . . Corruption Blocked . | . . . . . . . Effects 86 | . . . 2 69 10 5 Message Errors 16 | . . . . 16 . . Matter Fused 19 | . . . . 17 . 2 Heat Flow Errors 11 | . . . 1 10 . . Energy Discharges 15 | . . . 1 11 2 1 Parts Rejected 1 | . . . . 1 . . Data Loss (minor) 9 | . . . . 5 4 . Data Loss (major) 6 | . . . . 5 1 . Misfires 2 | . . . . 2 . . Alerts 2 | . . . . 1 . 1 Misdirections 4 | . . . . . 3 1 Weapon Failures 1 | . . . . 1 . . Overload Shots . | . . . . . . . Overflow Damage 77 | . . . 16 61 . . Projectiles 4 | . . . . 4 . . Explosions 73 | . . . 16 57 . . Melee . | . . . . . . . Knockbacks . | . . . . . . . Impact . | . . . . . . . Kinetic . | . . . . . . . Secondary . | . . . . . . . Self-Inflicted Damage 460 | . . . . 460 . . Shots 15 | . . . . 15 . . Rammed 11 | . . . . 1 . 10 Targets Rammed 11 | . . . . 1 . 10 Kicked . | . . . . . . . Crushed . | . . . . . . . Highest Temperature 282 | . 9 24 193 282 . . Average Temperature 68 | . 6 12 75 74 . . Received Heat Transfer 1461 | . . 75 9 1188 . 189 Effects 2 | . . . . 2 . . Energy Bleed 2 | . . . . 2 . . Siege Activations . | . . . . . . . Martial Activations . | . . . . . . . Shielding Activations . | . . . . . . . Robots Disrupted 1 | . . . . 1 . . Combat Hostiles 1 | . . . . 1 . . Robots Corrupted . | . . . . . . . Combat Hostiles . | . . . . . . . Parts Fried . | . . . . . . . Impact Corruptions . | . . . . . . . Robots Melted 1 | . . . . 1 . . Combat Hostiles 1 | . . . . 1 . . Parts Melted 8 | . . 2 . 6 . . Heat Transferred 3230 | . 74 407 50 2699 . . Parts Sabotaged . | . . . . . . . Parts Stolen . | . . . . . . . Parts Stripped . | . . . . . . . Power Chain Reactions 3 | . . . 1 2 . . Alert | -11 -10 -9 -8 -7 -7 -7 ------- Run | Yrd Mat Mat Mat Fac Was Fac Maximum Alert Level 1 | . . . . 1 . . Low Security (%) 72 | 100 100 100 100 61 100 100 Level 1 27 | . . . . 38 . . Level 2 . | . . . . . . . Level 3 . | . . . . . . . Level 4 . | . . . . . . . Level 5 . | . . . . . . . High Security . | . . . . . . . Max Security . | . . . . . . . Peak Influence 258 | . 7 60 30 258 86 . Initial 86 | . . . . 6 86 . Average 104 | . . 18 4 143 35 . Influence Increases 1587 | . 18 135 54 1380 . . Destroy 0b10 Robot/C 800 | . . 100 20 680 . . Destroy 0b10 Robot/NC 95 | . 5 . 5 85 . . Destroy Leader 228 | . 2 30 12 184 . . Successful Hack 40 | . 11 5 . 24 . . Disable Machine 255 | . . . . 255 . . Destroy Structure 124 | . . . 2 122 . . Partial Spotted 15 | . . . . 15 . . Lose Combat Pursuer 30 | . . . 15 15 . . Influence Decreases 1587 | . 18 135 39 1148 247 . Entered New Map 170 | . . . . 9 161 . Time Decay 960 | . 18 135 39 708 60 . Lost Part 307 | . . . . 281 26 . Purge Threat 150 | . . . . 150 . . Squads Dispatched 15 | . 1 1 . 12 . 1 Investigation . | . . . . . . . Extermination 6 | . . . . 6 . . Reinforcement 6 | . 1 1 . 3 . 1 Assault . | . . . . . . . Garrison 3 | . . . . 3 . . Intercept . | . . . . . . . Searches Triggered . | . . . . . . . Construction Impeded . | . . . . . . . Haulers Reinforced . | . . . . . . . Active Scanning Responses . | . . . . . . . Cargo Convoy Interrupts 1 | . . . . 1 . . Stealth | -11 -10 -9 -8 -7 -7 -7 --------- Run | Yrd Mat Mat Mat Fac Was Fac Distress Signals 3 | . . 1 . 2 . . Communications Jammed 34 | . . . . 34 . . Distress Signals 33 | . . . . 33 . . Times Spotted 73 | . 3 7 3 50 6 4 Peak Tracking Total 6 | . 3 3 2 6 6 3 Tactical Retreats 2 | . . . 1 1 . . Traps | -11 -10 -9 -8 -7 -7 -7 ------- Run | Yrd Mat Mat Mat Fac Was Fac Traps Triggered 5 | . . . 1 4 . . Indirectly . | . . . . . . . Trap Hack Attempts . | . . . . . . . Triggered . | . . . . . . . Disarmed . | . . . . . . . Reprogrammed . | . . . . . . . Reused . | . . . . . . . Traps Extracted . | . . . . . . . Installed . | . . . . . . . Triggered . | . . . . . . . Machines | -11 -10 -9 -8 -7 -7 -7 ---------- Run | Yrd Mat Mat Mat Fac Was Fac Machines Disabled 17 | . . . . 17 . . Max in Single Turn 8 | . . . . 8 . . Garrison Access 2 | . . . . 2 . . Machines Repaired . | . . . . . . . Machines Dismantled . | . . . . . . . Machines Sabotaged . | . . . . . . . Overloaded Fab Kills . | . . . . . . . Hacking | -11 -10 -9 -8 -7 -7 -7 --------- Run | Yrd Mat Mat Mat Fac Was Fac Machines Accessed 28 | . 6 5 1 15 . 1 Terminals 15 | . 3 3 1 8 . . Fabricators 4 | . . . . 3 . 1 Repair Stations 3 | . 1 1 . 1 . . Recycling Units 2 | . 2 . . . . . Scanalyzers 2 | . . 1 . 1 . . Garrison Access 2 | . . . . 2 . . Total Hacks 60 | . 14 14 3 28 . 1 Successful 30 | . 12 6 1 10 . 1 Failed 30 | . 2 8 2 18 . . Catastrophic 5 | . . 1 . 4 . . Database Lockouts . | . . . . . . . Manual . | . . . . . . . Terminals 41 | . 8 12 3 18 . . Fabricators 5 | . . . . 4 . 1 Repair Stations 5 | . 3 1 . 1 . . Recycling Units 3 | . 3 . . . . . Scanalyzers 2 | . . 1 . 1 . . Garrison Access 4 | . . . . 4 . . Terminal Hacks 19 | . 6 6 1 6 . . Record 9 | . 3 5 . 1 . . Prototype ID Bank 2 | . . 1 1 . . . Open DSF 1 | . . . . 1 . . Emergency Access Points 1 | . 1 . . . . . Alert Level 1 | . . . . 1 . . Unreport Threat 1 | . . . . 1 . . Locate Traps 1 | . . . . 1 . . Dispatch Records 1 | . 1 . . . . . Zone Layout 2 | . 1 . . 1 . . Fabricator Hacks 2 | . . . . 1 . 1 Network Status 2 | . . . . 1 . 1 Repair Station Hacks 3 | . 3 . . . . . Scan Component 2 | . 2 . . . . . Repair 1 | . 1 . . . . . Recycling Unit Hacks 3 | . 3 . . . . . Retrieve Matter 1 | . 1 . . . . . Retrieve Components 2 | . 2 . . . . . Scanalyzer 1 | . . . . 1 . . Insert Component 1 | . . . . 1 . . Garrison Access Hacks 2 | . . . . 2 . . Seal Access 2 | . . . . 2 . . Unauthorized Hacks . | . . . . . . . Terminals . | . . . . . . . Fabricators . | . . . . . . . Repair Stations . | . . . . . . . Recycling Units . | . . . . . . . Scanalyzers . | . . . . . . . Garrison Access . | . . . . . . . Data Cores Recovered . | . . . . . . . Used . | . . . . . . . Hacking Detections 23 | . 4 5 1 12 . 1 Full Trace Events . | . . . . . . . Feedback Events . | . . . . . . . Feedback Blocked . | . . . . . . . Robot Schematics Acquired . | . . . . . . . Robots Built . | . . . . . . . Authchips . | . . . . . . . Time . | . . . . . . . Total Robot Build Rating . | . . . . . . . Part Schematics Acquired . | . . . . . . . Parts Built . | . . . . . . . Authchips . | . . . . . . . Time . | . . . . . . . Total Part Build Rating . | . . . . . . . Parts Repaired 1 | . 1 . . . . . Time 26 | . 26 . . . . . Parts Recycled . | . . . . . . . Recycled Matter . | . . . . . . . Retrieved Matter . | . . . . . . . Retrieved Components 2 | . 2 . . . . . Parts Scanalyzed . | . . . . . . . Part Schematics Acquired . | . . . . . . . Parts Damaged . | . . . . . . . Bothacking | -11 -10 -9 -8 -7 -7 -7 ------------ Run | Yrd Mat Mat Mat Fac Was Fac Used RIF Installer . | . . . . . . . Robots Hacked . | . . . . . . . Non-combat . | . . . . . . . Combat . | . . . . . . . Robot Hacks Applied . | . . . . . . . Relay Couplers Released . | . . . . . . . Fabnet Peak Effective % . | . . . . . . . Robots Rewired . | . . . . . . . Allies Hacked . | . . . . . . . Hacks Repelled . | . . . . . . . Allies | -11 -10 -9 -8 -7 -7 -7 -------- Run | Yrd Mat Mat Mat Fac Was Fac Total Allies . | . . . . . . . Largest Group . | . . . . . . . Highest-Rated Group . | . . . . . . . Highest-Rated Ally . | . . . . . . . Total Orders . | . . . . . . . Ally Attacks . | . . . . . . . Total Damage . | . . . . . . . Kills . | . . . . . . . Allies Corrupted . | . . . . . . . Allies Melted . | . . . . . . . Intel | -11 -10 -9 -8 -7 -7 -7 ------- Run | Yrd Mat Mat Mat Fac Was Fac Active Infowar (turns) 4095 | . 236 382 225 3013 166 73 Structural 2239 | . 236 382 225 1157 166 73 Traps 444 | . . . 162 282 . . Jamming 1843 | . . . . 1756 87 . ECM 1724 | . . . . 1494 157 73 Robot Analysis Total . | . . . . . . . Derelict Logs Recovered . | . . . . . . . Drone Launches . | . . . . . . . Drone Recoveries . | . . . . . . . Exploration | -11 -10 -9 -8 -7 -7 -7 ------------- Run | Yrd Mat Mat Mat Fac Was Fac Turns Passed 4496 | 85 367 382 225 3158 206 73 Spaces Moved 2683 | 63 227 320 169 1673 191 40 Core 161 | 8 . . . . 134 19 Treads 21 | . . . . . . 21 Legs 70 | 55 15 . . . . . Wheels 2431 | . 212 320 169 1673 57 . Hover . | . . . . . . . Flight . | . . . . . . . Fastest Speed 50 | 50 95 95 110 105 50 50 Average Speed 125 | 111 105 95 110 142 78 127 Slowest Speed 245 | 120 140 95 110 245 145 150 Overloaded Moves . | . . . . . . . Propulsion Burnouts . | . . . . . . . Robots Hopped . | . . . . . . . Potential Cave-ins . | . . . . . . . Cave-ins Triggered . | . . . . . . . Exploration Rate (%) 30 | 3 41 27 19 42 77 2 Regions Visited 6 Branch Regions . Pre-discovered Areas . | . . . . . . . Known Exits Taken . | . . . . . . . Unknown Exits Taken 4 | 1 1 1 1 . . . Scrap Searched . | . . . . . . . Spaces Dug . | . . . . . . . Terrain Destroyed 127 | . . . 3 124 . . Melee . | . . . . . . . Projectile 1 | . . . . 1 . . AOE 125 | . . . 3 122 . . Terrain Rammed . | . . . . . . . Walls Destroyed . | . . . . . . . Machines Disabled . | . . . . . . . Actions | -11 -10 -9 -8 -7 -7 -7 --------- Run | Yrd Mat Mat Mat Fac Was Fac Total 3519 | 75 347 379 203 2214 245 56 Wait 364 | . 103 10 13 199 36 3 Move 2678 | 62 226 319 168 1673 190 40 Hop . | . . . . . . . Pick Up 107 | 6 7 18 7 65 4 . Fast Attach 22 | 4 3 1 . 12 . 2 Attach 47 | 2 . 3 2 36 4 . Detach 5 | . 1 . . 4 . . Swap 63 | 1 3 3 7 42 7 . Drop 57 | . 2 13 4 34 4 . Fire 148 | . 2 12 2 132 . . Melee 4 | . . . . 4 . . Ram 2 | . . . . 1 . 1 Kick . | . . . . . . . Crush 10 | . . . . . . 10 Escape Stasis 8 | . . . . 8 . . Rewire 4 | . . . . 4 . . Trap . | . . . . . . . Miscellaneous . | . . . . . . . Route ------- -11/Scrapyard -10/Materials -9/Materials -8/Materials -7/Factory -7/Waste -7/Factory History --------- Turn | Location | Event 12 | -11/Scrapyard | Discovered new exit (range 16) 86 | -11/Scrapyard | Entered Materials 314 | -10/Materials | Build established: Mutant 374 | -10/Materials | Repaired Core Shielding 443 | -10/Materials | Discovered new exit (range 10) 453 | -10/Materials | Entered another Materials area 453 | -9/Materials | Evolved 2 slots: Utility x2 812 | -9/Materials | Discovered new exit (range 10) 835 | -9/Materials | Entered another Materials area 835 | -8/Materials | Evolved 2 slots: Power x1, Utility x1 1047 | -8/Materials | Discovered new exit (range 10) 1060 | -8/Materials | Entered Factory 1060 | -7/Factory | Evolved 2 slots: Utility x2 1075 | -7/Factory | Found Prototype Launcher 1079 | -7/Factory | Identified Rocket Array 1083 | -7/Factory | Found Rocket Array 1679 | -7/Factory | Lost 7 parts (1p2n2u2w) 1990 | -7/Factory | Cargo convoy interrupted 2023 | -7/Factory | Lost 4 parts (2p1n1w) 2122 | -7/Factory | Build established: Scavenger-Mutant 2541 | -7/Factory | Build established: Hacker-Mutant 2877 | -7/Factory | Core integrity fell below 50% 3130 | -7/Factory | Lost 3 parts (1p1n1u) 3954 | -7/Factory | System corruption reached 10% 4006 | -7/Factory | Lost 4 parts (1p2n1w) 4218 | -7/Factory | Sucked down chute 4218 | -7/Factory | Entered Waste 4306 | -7/Waste | Spotted C-40 Crusher 4309 | -7/Waste | Build established: Scavenger-Mutant 4322 | -7/Waste | Spotted C-40 Crusher 4343 | -7/Waste | Crushed by Compactor (1 part destroyed, 1 dropped) 4346 | -7/Waste | Crushed by Compactor (1 part destroyed, 1 dropped) 4346 | -7/Waste | Crushed by Compactor (1 part destroyed, 1 dropped) 4347 | -7/Waste | Core integrity fell below 20% 4349 | -7/Waste | Crushed by Compactor (1 part destroyed, 1 dropped) 4349 | -7/Waste | Crushed by Compactor (1 part destroyed, 2 dropped) 4354 | -7/Waste | Spotted C-40 Crusher 4355 | -7/Waste | Spotted C-40 Crusher 4358 | -7/Waste | Spotted C-40 Crusher 4380 | -7/Waste | Lost 6 parts (1p1n3u1w) 4401 | -7/Waste | Spotted C-40 Crusher 4417 | -7/Waste | Discovered new exit (range 16) 4424 | -7/Waste | Entered Factory 4497 | -7/Factory | Destroyed by G-47 Trooper with Particle Gun Last Messages --------------- 04446_ Acquired Adv. Treads. 04454_ System corrupted: Matter fused (-10). 04460_ Slammed into G-47 Trooper. 04469_ System corrupted: Energy discharge (-28). 04469_ System Shield destroyed. 04470_ Slammed into G-47 Trooper. 04475_ Lgt. Deuterium Engine destroyed. 04486_ System corrupted: IFF burst signal emitted. 04490_ Connecting with Fabricator... 04490_ Current location identified: Factory >>Network(Status) Querying network status... 6 records found: (174,96) - Loaded: Hvy. Laser (56,118) - Building: G-47 Trooper (174,191) - Loaded: Imp. Cryofiber Web (159,195) - Loaded: Adv. Focal Shield (46,161) - Idle (94,66) - Idle Map ----- +----------------------------------------------------+ | ???????????????????? ?????????????????????? | | ???????????????????? ???????????????????? | | ???????????????????? # ?????????????????? | | ???????????????????? # ?????????????????? | | ???????????????????? # ?????????????????? | | ?????????????????? # # ?????????????????? | | ??????????????????## # ?????????????????? | | ??????????????????## # ?????????????????? | | ??????????????????## # ?????????????????? | | ??????????????????## + ?????????????????? | | ??????????????????## # ?????????????????? | | ?? # #### # # ??????????? | | ?? ##+############## ##+##### ??????????? | | ?? """ # ??????????? | | ???? "Y" #### # ??????????? | | ?"" """ " " #### + ??????????? | | ?"" """ #### # ??????????? | | """ """ #### # ??????????? | | #######+####### # ??????????? | | ## # ? # ??????????? | | ## + ??????????????? | | ? ## !!! ##??????????????? | | ???????## g/ !!! ##??????????????? | | ???????## ## !! ##??????????????? | | ???????## ## g # ??????????????? | | ???????####/#### """ @ # ??????????????? | | ???????## # ""F """ + ??????????????? | | ???????## # "" """ # ??????????????? | | ???????## """# """ """ # ??????????????? | | ???????## """# """ ##??????????????? | | ???????## """# ##??????????????? | | ???????## ""###############??????????????? | | ???????## ""###############??????????????? | | ???????## ##???????????????????????????? | | ???????##########???????????????????????????? | | | | | | | | | | | | | | | | | | | | | | | | | | | | | | | +----------------------------------------------------+ Best States ------------- Heat Dissipation 62 Energy Generation 25 Energy Capacity 600 Matter Stores 300 Matter Capacity 300 Sight Range 16 Terrain Scan Density 10 ECM Strength 1 Jamming Range 12 Base Temperature (-) 100 Armor Coverage 600 Core Shielding 20 Weapon Cycling 15 Evasion (%) 55 Targeting Accuracy 6 Recoil Reduction 1 Offensive Hacking 10 Defensive Hacking 10 Item Schematics ----------------- None Robot Schematics ------------------ None Fabricated ------------ Nothing Repaired ---------- Core Shielding | 52% | -10/Materials Alien Tech Used ----------------- None Achievements -------------- None Challenges ------------ None Game ------ Seed TargetingControlBank Manual? 0 Play Time 01:38:27 Cumulative 31.7 hours Start 2025.06.02 @ 00:40:29 End 2025.06.02 @ 02:41:34 Sessions 3 Manual Loads 0 Difficulty Rogue Special Mode None Game No. 31 Rogue 31 Adventurer 0 Explorer 0 Win Type - Total 0 Types 0/0/0/0/0/0/0/0/0/0 Lore% 12 Gallery% 26 Achievement% 26 Wizard Run 0 Options --------- Layout 1 ASCII 1 Keyboard 0 Movement Numpad Keybinds 0 Fullscreen 1 Font 24/Smallcaps Map View 50x35 Zoom Use 0% Tactical HUD 1 Map Filters NONE Filters NONE Steam 1 RUN: e1e82b00-5f77-4198-bad9-5bf1189d482c